Cogmind - Beta 13 @@@ ROGUE MODE // 2024.04.04 @ 15:05:20 Player: Zaz Result: Destroyed by YI-UF0 with YI-UF0's Doublenader Performance ------------- Evolutions (0) 0 Regions Visited (4) 800 Robots Destroyed (10) 50 Value Destroyed (194) 194 Prototype IDs (23) 460 Alien Tech Used (0) 0 Bonus (300) 300 TOTAL SCORE: 1804 Bonus ------- Aligned with FarCom 300 Cogmind --------- Core Integrity 0/250 Matter 210/300 Energy 125/125 System Corruption 9% Temperature Cool (0) Movement Rolling (115) Ox1 Location -9/Mines Parts ------- > --- POWER (1) -------- Light Ion Engine > --- PROPULSION (2) --- Light Treads Compact Wheel > --- UTILITY (2) ------ Large Storage Unit > --- WEAPON (2) ------- Light Assault Rifle Light Assault Rifle > --- INVENTORY (15) --- Light Treads Aluminum Leg Aluminum Leg Compact Wheel Small Storage Unit Targeting Computer Targeting Computer Light Assault Rifle Light Assault Rifle Grenade Launcher Longsword +1 Peak State ------------ > --- POWER ------------ Ion Engine > --- PROPULSION ------- Light Treads Compact Wheel > --- UTILITY ---------- Large Storage Unit Targeting Computer > --- WEAPON ----------- Light Assault Rifle Longsword +1 > --- INVENTORY -------- Light Ion Engine Light Treads Aluminum Leg Aluminum Leg Compact Wheel Small Storage Unit Targeting Computer Targeting Computer Light Assault Rifle Light Assault Rifle Light Assault Rifle Grenade Launcher [Rating: 15] Favorites ----------- Power Ion Engine Engine Ion Engine Propulsion Light Treads Treads Light Treads Wheel Compact Wheel Utility Large Storage Unit Storage Large Storage Unit Processor Targeting Computer Weapon Light Assault Rifle Energy Gun EM Pulse Gun Ballistic Gun Light Assault Rifle Launcher Grenade Launcher Slashing Weapon Longsword +1 Build | -11 -10 -10 -10 -9 ------- Run | Yrd Mat Min Exi Min Slots Evolved . | . . . . . Power . | . . . . . Propulsion . | . . . . . Utility . | . . . . . Weapon . | . . . . . Parts Attached 20 | 6 9 2 . 3 Power 2 | 1 . . . 1 Engine 2 | 1 . . . 1 Core . | . . . . . Reactor . | . . . . . Propulsion 7 | 2 5 . . . Treads 3 | 1 2 . . . Leg . | . . . . . Wheel 4 | 1 3 . . . Hover . | . . . . . Flight . | . . . . . Utility 3 | 1 2 . . . Device . | . . . . . Storage 2 | 1 1 . . . Processor 1 | . 1 . . . Hackware . | . . . . . Protection . | . . . . . Artifact . | . . . . . Weapon 8 | 2 2 2 . 2 Energy Gun 2 | 2 . . . . Energy Cannon . | . . . . . Ballistic Gun 4 | . 2 1 . 1 Ballistic Cannon . | . . . . . Launcher 1 | . . 1 . . Special Weapon . | . . . . . Impact Weapon . | . . . . . Slashing Weapon 1 | . . . . 1 Piercing Weapon . | . . . . . Special Melee Weapon . | . . . . . Unidentified Prototypes . | . . . . . Parts Lost 2 | . . . . 2 Power 1 | . . . . 1 Propulsion . | . . . . . Utility 1 | . . . . 1 Weapon . | . . . . . Highest Loss Streak 2 | . . . . 2 To Critical Strikes . | . . . . . Average Slot Usage (%) 96 | . 93 100 100 98 Engine 14 | . 14 14 14 14 Treads 16 | . 20 14 14 14 Wheel 11 | . 8 14 14 14 Storage 15 | . 16 14 14 14 Processor 9 | . 5 14 14 13 Energy Gun 4 | . 9 . . . Ballistic Gun 23 | . 19 25 28 27 Naked Turns . | . . . . . Heaviest Build 32 | 14 32 29 27 29 Greatest Support 40 | 20 40 16 16 16 Greatest Overweight (x) 1 | 1 1 1 1 1 Average Overweight (x) . | . . 1 1 1 Largest Inventory Capacity 15 | 8 15 15 15 15 Average Capacity 13 | 7 12 15 15 15 Most Carried 12 | 7 11 11 12 12 Average Carried 10 | 4 9 11 11 11 Final Capacity 15 | 8 15 15 15 15 Final Carried 12 | 7 11 11 12 11 Class Distribution -------------------- 100% | Mutant Dominant Class ---------------- Mutant | -10/Materials Mutant | -10/Mines Mutant | -10/Exiles Mutant | -9/Mines Resources | -11 -10 -10 -10 -9 ----------- Run | Yrd Mat Min Exi Min Matter Collected 383 | 260 95 8 . 20 Remotely . | . . . . . Salvage Created 256 | 100 148 8 . . Parts 28 | 9 15 4 . . Haulers Intercepted . | . . . . . Recyclers Shooed . | . . . . . Parts Field Recycled . | . . . . . Retrieved Matter . | . . . . . Parts Self-Destructed . | . . . . . Prevented . | . . . . . Kills | -11 -10 -10 -10 -9 ------- Run | Yrd Mat Min Exi Min Combat Hostiles Destroyed 5 | . 3 2 . . Guns 3 | . 3 . . . AOE 2 | . . 2 . . Classes Destroyed 5 | 2 2 1 . . Tunneler 2 | 2 . . . . Recycler 1 | 1 . . . . Watcher 2 | . 2 . . . Swarmer 2 | . . 2 . . Grunt 3 | . 3 . . . Best Kill Streak 2 | 2 2 2 . . Combat Bots Only 2 | . 2 2 . . Max Kills in Single Turn 1 | 1 1 1 . . Gunslinging . | . . . . . Exploded 1 | . . 1 . . Melee . | . . . . . Uniques/NPCs Destroyed . | . . . . . Combat | -11 -10 -10 -10 -9 -------- Run | Yrd Mat Min Exi Min Hostile Shots Fired 41 | . 22 9 . 10 Missed 14 | . 5 4 . 5 Damage Taken 747 | . 189 69 . 489 Core 253 | . 58 6 . 189 Absorbed by Shields . | . . . . . Core Remaining (%) 100 | 100 . . . . Volleys Fired 26 | 3 19 3 . 1 Largest 2 | 2 2 1 . 2 Hottest 80 | 80 80 30 . 40 Shots Fired 49 | 6 38 3 . 2 Gun 46 | 6 38 . . 2 Cannon . | . . . . . Launcher 3 | . . 3 . . Special . | . . . . . Kinetic 34 | . 32 . . 2 Thermal . | . . . . . Explosive 3 | . . 3 . . Electromagnetic 12 | 6 6 . . . Robot Hit Streak 7 | 1 7 4 . 5 Robot Miss Streak 3 | 1 3 . . 1 Penetration Max . | . . . . . Secondary Targets . | . . . . . Shots Hit Robots 32 | 3 26 2 . 1 Core Hits 18 | 3 10 4 . 1 Critical Kills . | . . . . . Critical Parts Destroyed . | . . . . . Critical Strikes . | . . . . . Melee Attacks 3 | . . . . 3 Impact . | . . . . . Slashing 3 | . . . . 3 Piercing . | . . . . . Sneak Attacks . | . . . . . Combat Hostiles . | . . . . . Follow-up Attacks . | . . . . . Damage Inflicted 499 | 54 263 175 . 7 Guns 299 | 54 238 . . 7 Cannons . | . . . . . Explosions 200 | . 25 175 . . Melee . | . . . . . Ramming . | . . . . . Kinetic 187 | . 180 . . 7 Thermal 25 | . 25 . . . Explosive 175 | . . 175 . . Electromagnetic 112 | 54 58 . . . Impact . | . . . . . Slashing . | . . . . . Piercing . | . . . . . Highest Corruption 9 | . 1 1 1 9 Average Corruption 1 | . 1 1 1 1 Corruption Purged . | . . . . . Corruption Blocked . | . . . . . Effects 4 | . . 1 1 2 Message Errors 1 | . . 1 . . Matter Fused 2 | . . . 1 1 Data Loss (minor) 1 | . . . . 1 Overload Shots . | . . . . . Overflow Damage 9 | . . 9 . . Projectiles . | . . . . . Explosions 9 | . . 9 . . Melee . | . . . . . Knockbacks . | . . . . . Impact . | . . . . . Kinetic . | . . . . . Secondary . | . . . . . Self-Inflicted Damage 32 | . . 32 . . Shots 1 | . . 1 . . Rammed . | . . . . . Targets Rammed . | . . . . . Kicked . | . . . . . Crushed . | . . . . . Highest Temperature 36 | 36 36 . . . Average Temperature 13 | 17 11 . . . Received Heat Transfer 102 | . 102 . . . Siege Activations . | . . . . . Robots Corrupted . | . . . . . Combat Hostiles . | . . . . . Parts Fried . | . . . . . Impact Corruptions . | . . . . . Robots Melted . | . . . . . Combat Hostiles . | . . . . . Parts Melted . | . . . . . Heat Transferred 50 | . 50 . . . Parts Sabotaged . | . . . . . Parts Stolen . | . . . . . Parts Stripped . | . . . . . Power Chain Reactions 1 | . 1 . . . Alert | -11 -10 -10 -10 -9 ------- Run | Yrd Mat Min Exi Min Peak Influence 170 | 15 170 115 . 16 Initial 13 | . 9 13 . . Average 43 | 4 59 38 . 2 Maximum Alert Level . | . . . . . Low Security (%) 100 | 100 100 100 . 100 Level 1 . | . . . . . Level 2 . | . . . . . Level 3 . | . . . . . Level 4 . | . . . . . Level 5 . | . . . . . High Security . | . . . . . Max Security . | . . . . . Squads Dispatched 1 | . 1 . . . Investigation 1 | . 1 . . . Extermination . | . . . . . Reinforcement . | . . . . . Assault . | . . . . . Garrison . | . . . . . Intercept . | . . . . . Searches Triggered . | . . . . . Construction Impeded . | . . . . . Haulers Reinforced . | . . . . . Active Scanning Responses . | . . . . . Cargo Convoy Interrupts . | . . . . . Stealth | -11 -10 -10 -10 -9 --------- Run | Yrd Mat Min Exi Min Distress Signals . | . . . . . Communications Jammed . | . . . . . Distress Signals . | . . . . . Times Spotted 24 | . 7 3 . 14 Peak Tracking Total 14 | . 3 3 . 14 Tactical Retreats 3 | . 1 1 . 1 Traps | -11 -10 -10 -10 -9 ------- Run | Yrd Mat Min Exi Min Traps Triggered 2 | . 2 . . . Indirectly . | . . . . . Trap Hack Attempts . | . . . . . Triggered . | . . . . . Disarmed . | . . . . . Reprogrammed . | . . . . . Reused . | . . . . . Traps Extracted . | . . . . . Installed . | . . . . . Triggered . | . . . . . Machines | -11 -10 -10 -10 -9 ---------- Run | Yrd Mat Min Exi Min Machines Disabled 2 | . 1 1 . . Max in Single Turn 1 | . 1 1 . . Machines Repaired . | . . . . . Machines Dismantled . | . . . . . Machines Sabotaged . | . . . . . Overloaded Fab Kills . | . . . . . Hacking | -11 -10 -10 -10 -9 --------- Run | Yrd Mat Min Exi Min Machines Accessed 5 | . 4 . 1 . Terminals 4 | . 4 . . . Fabricators . | . . . . . Repair Stations . | . . . . . Recycling Units . | . . . . . Scanalyzers . | . . . . . Garrison Access . | . . . . . Total Hacks 12 | . 11 . 1 . Successful 5 | . 4 . 1 . Failed 7 | . 7 . . . Catastrophic 4 | . 4 . . . Database Lockouts . | . . . . . Manual 12 | . 11 . 1 . Terminals 11 | . 11 . . . Fabricators . | . . . . . Repair Stations . | . . . . . Recycling Units . | . . . . . Scanalyzers . | . . . . . Garrison Access . | . . . . . Terminal Hacks 5 | . 4 . 1 . Part Schematic 4 | . 4 . . . Derelict Proto ID Bank 1 | . . . 1 . Fabricator Hacks . | . . . . . Repair Station Hacks . | . . . . . Recycling Unit Hacks . | . . . . . Scanalyzer . | . . . . . Garrison Access Hacks . | . . . . . Unauthorized Hacks . | . . . . . Terminals . | . . . . . Fabricators . | . . . . . Repair Stations . | . . . . . Recycling Units . | . . . . . Scanalyzers . | . . . . . Garrison Access . | . . . . . Data Cores Recovered . | . . . . . Used . | . . . . . Hacking Detections 2 | . 2 . . . Full Trace Events . | . . . . . Feedback Events . | . . . . . Feedback Blocked . | . . . . . Robot Schematics Acquired . | . . . . . Robots Built . | . . . . . Authchips . | . . . . . Time . | . . . . . Total Robot Build Rating . | . . . . . Part Schematics Acquired 4 | . 4 . . . Parts Built . | . . . . . Authchips . | . . . . . Time . | . . . . . Total Part Build Rating . | . . . . . Parts Repaired . | . . . . . Time . | . . . . . Parts Recycled . | . . . . . Recycled Matter . | . . . . . Retrieved Matter . | . . . . . Retrieved Components . | . . . . . Parts Scanalyzed . | . . . . . Part Schematics Acquired . | . . . . . Parts Damaged . | . . . . . Bothacking | -11 -10 -10 -10 -9 ------------ Run | Yrd Mat Min Exi Min Used RIF Installer . | . . . . . Robots Hacked . | . . . . . Non-combat . | . . . . . Combat . | . . . . . Robot Hacks Applied . | . . . . . Relay Couplers Released . | . . . . . Fabnet Peak Effective % . | . . . . . Robots Rewired . | . . . . . Allies Hacked . | . . . . . Hacks Repelled . | . . . . . Allies | -11 -10 -10 -10 -9 -------- Run | Yrd Mat Min Exi Min Total Allies . | . . . . . Largest Group . | . . . . . Highest-Rated Group . | . . . . . Highest-Rated Ally . | . . . . . Total Orders . | . . . . . Ally Attacks . | . . . . . Total Damage . | . . . . . Kills . | . . . . . Allies Corrupted . | . . . . . Allies Melted . | . . . . . Intel | -11 -10 -10 -10 -9 ------- Run | Yrd Mat Min Exi Min Robot Analysis Total . | . . . . . Derelict Logs Recovered 4 | . . 2 . 2 Drone Launches . | . . . . . Drone Recoveries . | . . . . . Exploration | -11 -10 -10 -10 -9 ------------- Run | Yrd Mat Min Exi Min Turns Passed 1282 | 68 553 125 397 139 Spaces Moved 931 | 46 356 80 345 104 Core 2 | 2 . . . . Treads 112 | 2 110 . . . Legs . | . . . . . Wheels 817 | 42 246 80 345 104 Hover . | . . . . . Flight . | . . . . . Fastest Speed 50 | 50 80 115 115 115 Average Speed 115 | 92 119 115 115 115 Slowest Speed 160 | 160 160 115 115 115 Overloaded Moves . | . . . . . Propulsion Burnouts . | . . . . . Robots Hopped . | . . . . . Cave-ins Triggered 1 | . . . . 1 Exploration Rate (%) 39 | 5 59 17 78 38 Regions Visited 4 Branch Regions 3 Pre-discovered Areas 2 | . . 1 . 1 Known Exits Taken . | . . . . . Unknown Exits Taken 4 | 1 1 1 1 . Scrap Searched 1 | . . . . 1 Spaces Dug 3 | . . . . 3 Terrain Destroyed 29 | . 1 25 . 3 Melee 3 | . . . . 3 Projectile . | . . . . . AOE 26 | . 1 25 . . Terrain Rammed . | . . . . . Walls Destroyed . | . . . . . Machines Disabled . | . . . . . Actions | -11 -10 -10 -10 -9 --------- Run | Yrd Mat Min Exi Min Total 1084 | 63 450 109 345 117 Wait 88 | . 57 25 . 6 Move 927 | 45 355 79 344 104 Hop . | . . . . . Pick Up 14 | 8 5 . 1 . Fast Attach 10 | 6 4 . . . Attach 1 | . . . . 1 Detach 1 | . 1 . . . Swap 9 | . 5 2 . 2 Drop 5 | 1 4 . . . Fire 26 | 3 19 3 . 1 Melee 3 | . . . . 3 Ram . | . . . . . Kick . | . . . . . Crush . | . . . . . Escape Stasis . | . . . . . Rewire . | . . . . . Trap . | . . . . . Miscellaneous . | . . . . . Route ------- -11/Scrapyard -10/Materials (discovered 3 exits: [*Mat x2] / [*Min]) -10/Mines -10/Exiles -9/Mines History --------- Turn | Location | Event 17 | -11/Scrapyard | Discovered new exit (range 15) 69 | -11/Scrapyard | Entered Materials 224 | -10/Materials | Discovered new exit (range 10) 323 | -10/Materials | Build established: Mutant 588 | -10/Materials | Discovered new exit (range 10) 616 | -10/Materials | Discovered new exit (range 5) 622 | -10/Materials | Entered Mines 712 | -10/Mines | Learned location of 1 exit from Materials 742 | -10/Mines | Deemed a non-threat by the Exiles lab entrance 742 | -10/Mines | Discovered new exit (range 5) 747 | -10/Mines | Entered Exiles 774 | -10/Exiles | Met 8R-AWN 792 | -10/Exiles | Met EX-HEX 829 | -10/Exiles | Met EX-BIN 843 | -10/Exiles | Aligned with FarCom system 844 | -10/Exiles | Given EX-Vault access code 872 | -10/Exiles | Opened EX-Vault 879 | -10/Exiles | Found Longsword +1 905 | -10/Exiles | Warned to stay clear of 0b10 Research branches 984 | -10/Exiles | Met EX-DEC 1006 | -10/Exiles | Visited The Gauntlet 1128 | -10/Exiles | Discovered new exit (range 14) 1144 | -10/Exiles | Left Exiles lab with Longsword +1 1144 | -10/Exiles | Entered Mines 1165 | -9/Mines | Learned Materials security intel 1201 | -9/Mines | Learned location of Storage (-9) 1244 | -9/Mines | Assembled infested the area 1249 | -9/Mines | Assisted by a Guerilla fighting off Assembled 1275 | -9/Mines | Crushed by falling debris 1275 | -9/Mines | Core integrity fell below 50% 1275 | -9/Mines | Core integrity fell below 20% 1283 | -9/Mines | Destroyed by YI-UF0 with YI-UF0's Doublenader Last Messages --------------- 01201_ Acquired derelict log, extracted data. World map updated: -9/Storage. 01211_ System corrupted: Matter fused (-10). 01225_ Searching scrap... 01225_ Found Hvy. EM Pulse Gun. 01225_ Found 20 Matter. 01226_ Acquired 20 matter. 01244_ ALERT: Infestation in the mines, dispatching Demolisher response squad. 01249_ A derelict emerges from the shadows: "You need to get out of here! I've been tracking a group of Assembled to figure out where they're coming from, and they're closing on this area, come on!" 01263_ 27-BW2(h): "I'll hold them off! Go on ahead or try to find another way!" 01264_ 27-BW2(h) destroyed. 01265_ K-01 Serf collects debris. 01275_ The unstable cave ceiling collapses. 01275_ Crushed by falling debris. 01275_ Targeting Computer destroyed. 01275_ System corrupted by crushing effect (+3). 01275_ Ion Engine destroyed. 01275_ System corrupted by crushing effect (+5). 01279_ System corrupted: Component data lost. Map ----- +----------------------------------------------------+ | | | | | | | | | ?????????????????????????????????????????????????? | | ?????????????????????????????????????????????????? | | ?????????????????????????????????????????????????? | | ?????????????????????????????????????????????????? | | ?????????????????????????????????????????????????? | | ?????????????????????????????????????????????????? | | ?????????????????????????????????????????????????? | | ?????????????????????????????????????????????????? | | ?????????####????????????????????????????????????? | | ????????## #######??????????????????????????????? | | ???????## ##?????????????????????????????? | | ???????# #?????????????????????????????? | | ???????# #?????????????????????????????? | | ??????## ####??????????????????????????? | | ????### # ??????????????????????????? | | ##### ## #####????? ##?????????????? | | # #### ### g # ## #?????????????? | | # ## ##??# #?# a #????????????? | | # ### ###???# #?? #???????????? | | # #?####?????# #???# #???????????????? | | # ####???????# #???# # #?? ##???????????????? | | # #???????# ##### ## @#??????????????????????? | | #### #???????# #####??????????????????????? | | ???# ####????# #### ##"##########???????????????? | | ??## ##???# #### ### ##??????????????? | | ?## #???# # ## #?????????????? | | ## #??## #?????????????? | | #??# #?????????????? | | #?## % #????????????? | | ## #### #### * #???????????? | | #?#### #### ##??? %= #???????????? | | ###### # ### #?????== ##???????????? | | # ##?## #??????* ##????????????? | | # ##???## ##??????? #?????????????? | | # ## ## # #?????#####??????d?? #?????????????? | | # ## #####[ #????????????????????##?????????????? | | # ##??# #???????????????????????????????????? | | #### #???????????????????????????????????? | | #???????????????????????????????????? | | #???????????????????????????????????? | | #???????????????????????????????????? | | # #???????????????????????????????????? | | # ## #???????????????????????????????????? | | #### ##???????????????????????????????????? | | ##?# ##????????????????????????????????????? | | ## ##?????????????????????????????????????? | +----------------------------------------------------+ Best States ------------- Heat Dissipation 25 Energy Generation 10 Energy Capacity 250 Matter Stores 300 Matter Capacity 300 Sight Range 16 Terrain Scan Density 10 Evasion (%) 44 Targeting Accuracy 5 Recoil Reduction 2 Item Schematics ----------------- Huge Storage Unit | -10/Materials | Hacked Transport Network Coupler | -10/Materials | Hacked Com. Wheel | -10/Materials | Hacked Ion Engine | -10/Materials | Hacked Robot Schematics ------------------ None Fabricated ------------ Nothing Alien Tech Used ----------------- None Achievements -------------- None Challenges ------------ None Game ------ Seed ShockCouplerShotgun Manual? 0 Play Time 00:14:17 Cumulative 17.1 hours Start 2024.04.04 @ 14:51:53 End 2024.04.04 @ 15:05:20 Sessions 1 Manual Loads 0 Difficulty Rogue Special Mode None Game No. 16 Rogue 16 Adventurer 0 Explorer 0 Win Type - Total 0 Types 0/0/0/0/0/0/0/0/0 Lore% 15 Gallery% 20 Achievement% 19 Wizard Run 0 Options --------- Layout 0 ASCII 0 Keyboard 0 Movement Mouse Keybinds 0 Fullscreen 2 Font 20/SmallcapsGlow Map View 140x60 Zoom Use 0% Tactical HUD 1 Map Filters NONE Filters NONE Steam 1 RUN: 148f7424-f30a-4112-a40a-2ead438d555c